Cogmind - Beta 13 @@@ ROGUE MODE // 2024.04.21 @ 09:28:32 Player: Zaros426 Result: Destroyed by XT-OW3(R) with Subdweller Machine Gun Performance ------------- Evolutions (0) 0 Regions Visited (2) 400 Robots Destroyed (21) 105 Value Destroyed (494) 494 Prototype IDs (0) 0 Alien Tech Used (0) 0 Bonus (0) 0 TOTAL SCORE: 999 Bonus ------- None Cogmind --------- Core Integrity 0/250 Matter 280/300 Energy 265/265 System Corruption 0% Temperature Cool (17) Movement Treading (160) Location -10/Subcaves Parts ------- > --- POWER (1) -------- Improved Ion Engine > --- PROPULSION (2) --- Light Treads Light Treads > --- UTILITY (2) ------ Disposable Heat Sink Large Storage Unit > --- WEAPON (2) ------- Beam Cannon Beam Cannon > --- INVENTORY (15) --- Improved Ion Engine Improved Ion Engine Aluminum Leg Makeshift Leg Light Armor Plating Light Armor Plating Light Armor Plating Light Armor Plating Light Armor Plating Light Armor Plating Beam Cannon Heavy Hammer Heavy Hammer Heavy Hammer Heavy Hammer Peak State ------------ > --- POWER ------------ Improved Ion Engine > --- PROPULSION ------- Aluminum Leg Aluminum Leg > --- UTILITY ---------- Large Storage Unit Light Armor Plating > --- WEAPON ----------- Heavy Hammer Heavy Hammer > --- INVENTORY -------- Improved Ion Engine Improved Ion Engine Improved Ion Engine Light Treads Light Treads Light Armor Plating Light Armor Plating Light Armor Plating Particle Gun Particle Gun Particle Gun Heavy Hammer Heavy Hammer [Rating: 12] Favorites ----------- Power Improved Ion Engine Engine Improved Ion Engine Power Core Light Nuclear Core Propulsion Aluminum Leg Treads Light Treads Leg Aluminum Leg Utility Large Storage Unit Device Disposable Heat Sink Storage Large Storage Unit Protection Light Armor Plating Weapon Heavy Hammer Energy Gun Medium Laser Energy Cannon Beam Cannon Ballistic Gun Assault Rifle Impact Weapon Heavy Hammer Build | -11 -10 -10 ------- Run | Yrd Mat Sub Slots Evolved . | . . . Power . | . . . Propulsion . | . . . Utility . | . . . Weapon . | . . . Parts Attached 34 | 12 10 12 Power 4 | 1 2 1 Engine 3 | 1 1 1 Core 1 | . 1 . Reactor . | . . . Propulsion 10 | 7 1 2 Treads 6 | 4 . 2 Leg 4 | 3 1 . Wheel . | . . . Hover . | . . . Flight . | . . . Utility 7 | 2 3 2 Device 3 | 1 . 2 Storage 2 | 1 1 . Processor . | . . . Hackware . | . . . Protection 2 | . 2 . Artifact . | . . . Weapon 13 | 2 4 7 Energy Gun 3 | 1 2 . Energy Cannon 5 | . . 5 Ballistic Gun 1 | 1 . . Ballistic Cannon . | . . . Launcher . | . . . Special Weapon . | . . . Impact Weapon 4 | . 2 2 Slashing Weapon . | . . . Piercing Weapon . | . . . Special Melee Weapon . | . . . Unidentified Prototypes . | . . . Parts Lost 1 | . . 1 Power 1 | . . 1 Propulsion . | . . . Utility . | . . . Weapon . | . . . Highest Loss Streak 1 | . . 1 To Critical Strikes . | . . . Average Slot Usage (%) 99 | . 98 99 Engine 12 | . 10 13 Core 1 | . 3 . Treads 10 | . . 24 Leg 17 | . 28 3 Device 5 | . 2 8 Storage 14 | . 14 14 Protection 8 | . 11 5 Energy Gun 5 | . 9 . Energy Cannon 5 | . . 12 Ballistic Gun 2 | . 4 . Impact Weapon 13 | . 12 15 Naked Turns . | . . . Heaviest Build 36 | 15 36 36 Greatest Support 40 | 40 20 40 Greatest Overweight (x) 1 | . 1 1 Average Overweight (x) . | . . . Largest Inventory Capacity 15 | 8 15 15 Average Capacity 12 | 7 10 15 Most Carried 15 | 4 15 15 Average Carried 11 | 2 9 14 Final Capacity 15 | 8 15 15 Final Carried 15 | 4 15 15 Class Distribution -------------------- 100% | Mutant Dominant Class ---------------- Mutant | -10/Materials Mutant | -10/Subcaves Resources | -11 -10 -10 ----------- Run | Yrd Mat Sub Matter Collected 608 | 183 320 105 Remotely . | . . . Salvage Created 592 | 73 386 133 Parts 37 | 11 22 4 Haulers Intercepted . | . . . Recyclers Shooed 1 | 1 . . Parts Field Recycled . | . . . Retrieved Matter . | . . . Parts Self-Destructed 9 | . . 9 Prevented . | . . . Kills | -11 -10 -10 ------- Run | Yrd Mat Sub Combat Hostiles Destroyed 14 | . 10 4 Guns 10 | . 10 . Cannons 2 | . . 2 Classes Destroyed 6 | 2 3 1 Worker 3 | 1 2 . Tunneler 3 | 3 . . Watcher 1 | . 1 . Swarmer 3 | . 3 . Grunt 7 | . 7 . Subdweller 4 | . . 4 Best Kill Streak 3 | 3 3 2 Combat Bots Only 2 | . 2 2 Max Kills in Single Turn 1 | 1 1 1 Gunslinging . | . . . Exploded . | . . . Melee . | . . . Uniques/NPCs Destroyed . | . . . Combat | -11 -10 -10 -------- Run | Yrd Mat Sub Hostile Shots Fired 95 | . 58 37 Missed 15 | . 9 6 Damage Taken 1153 | . 486 667 Core 253 | . 122 131 Absorbed by Shields . | . . . Core Remaining (%) 100 | 100 . . Volleys Fired 61 | 8 34 19 Largest 2 | 2 2 2 Hottest 130 | 70 130 120 Shots Fired 114 | 16 68 30 Gun 84 | 16 68 . Cannon 30 | . . 30 Launcher . | . . . Special . | . . . Kinetic 31 | 8 23 . Thermal 83 | 8 45 30 Explosive . | . . . Electromagnetic . | . . . Robot Hit Streak 10 | 7 10 9 Robot Miss Streak 3 | 2 3 1 Penetration Max . | . . . Secondary Targets . | . . . Shots Hit Robots 84 | 11 42 31 Core Hits 30 | 4 22 4 Critical Kills . | . . . Critical Parts Destroyed 1 | . . 1 Critical Strikes 5 | 1 3 1 Burn 4 | 1 3 . Smash 1 | . . 1 Melee Attacks 31 | . 1 30 Impact 31 | . 1 30 Slashing . | . . . Piercing . | . . . Sneak Attacks . | . . . Combat Hostiles . | . . . Follow-up Attacks 3 | . . 3 Damage Inflicted 1229 | 151 582 496 Guns 733 | 151 582 . Cannons 227 | . . 227 Explosions . | . . . Melee 269 | . . 269 Ramming . | . . . Kinetic 289 | 62 227 . Thermal 671 | 89 355 227 Explosive . | . . . Electromagnetic . | . . . Impact 269 | . . 269 Slashing . | . . . Piercing . | . . . Highest Corruption . | . . . Average Corruption . | . . . Corruption Purged . | . . . Corruption Blocked . | . . . Overload Shots . | . . . Overflow Damage 38 | . . 38 Projectiles . | . . . Explosions . | . . . Melee 38 | . . 38 Knockbacks 1 | . . 1 Impact 1 | . . 1 Kinetic . | . . . Secondary . | . . . Self-Inflicted Damage . | . . . Shots . | . . . Rammed . | . . . Targets Rammed . | . . . Kicked . | . . . Crushed . | . . . Highest Temperature 471 | 54 471 17 Average Temperature 128 | 28 158 7 Received Heat Transfer 261 | . 150 111 Effects 2 | . 2 . Energy Bleed 2 | . 2 . Siege Activations . | . . . Robots Corrupted . | . . . Combat Hostiles . | . . . Parts Fried 2 | . . 2 Impact Corruptions 2 | . . 2 Robots Melted . | . . . Combat Hostiles . | . . . Parts Melted 8 | . 8 . Heat Transferred 1998 | 333 1184 481 Parts Sabotaged . | . . . Parts Stolen . | . . . Parts Stripped . | . . . Power Chain Reactions . | . . . Alert | -11 -10 -10 ------- Run | Yrd Mat Sub Peak Influence 224 | 20 224 . Initial 13 | . 13 . Average 64 | 6 74 . Maximum Alert Level 1 | . 1 . Low Security (%) 93 | 100 92 . Level 1 6 | . 7 . Level 2 . | . . . Level 3 . | . . . Level 4 . | . . . Level 5 . | . . . High Security . | . . . Max Security . | . . . Squads Dispatched 1 | . 1 . Investigation 1 | . 1 . Extermination . | . . . Reinforcement . | . . . Assault . | . . . Garrison . | . . . Intercept . | . . . Searches Triggered . | . . . Construction Impeded . | . . . Haulers Reinforced . | . . . Active Scanning Responses . | . . . Cargo Convoy Interrupts . | . . . Stealth | -11 -10 -10 --------- Run | Yrd Mat Sub Distress Signals . | . . . Communications Jammed . | . . . Distress Signals . | . . . Times Spotted 19 | . 14 5 Peak Tracking Total 3 | . 3 2 Tactical Retreats . | . . . Traps | -11 -10 -10 ------- Run | Yrd Mat Sub Traps Triggered 1 | . 1 . Indirectly . | . . . Trap Hack Attempts . | . . . Triggered . | . . . Disarmed . | . . . Reprogrammed . | . . . Reused . | . . . Traps Extracted . | . . . Installed . | . . . Triggered . | . . . Machines | -11 -10 -10 ---------- Run | Yrd Mat Sub Machines Disabled . | . . . Max in Single Turn . | . . . Machines Repaired . | . . . Machines Dismantled . | . . . Machines Sabotaged . | . . . Overloaded Fab Kills . | . . . Hacking | -11 -10 -10 --------- Run | Yrd Mat Sub Machines Accessed 3 | . 3 . Terminals 3 | . 3 . Fabricators . | . . . Repair Stations . | . . . Recycling Units . | . . . Scanalyzers . | . . . Garrison Access . | . . . Total Hacks 8 | . 8 . Successful 3 | . 3 . Failed 5 | . 5 . Catastrophic 1 | . 1 . Database Lockouts . | . . . Manual 7 | . 7 . Terminals 8 | . 8 . Fabricators . | . . . Repair Stations . | . . . Recycling Units . | . . . Scanalyzers . | . . . Garrison Access . | . . . Terminal Hacks 3 | . 3 . Robot Analysis 3 | . 3 . Fabricator Hacks . | . . . Repair Station Hacks . | . . . Recycling Unit Hacks . | . . . Scanalyzer . | . . . Garrison Access Hacks . | . . . Unauthorized Hacks . | . . . Terminals . | . . . Fabricators . | . . . Repair Stations . | . . . Recycling Units . | . . . Scanalyzers . | . . . Garrison Access . | . . . Data Cores Recovered . | . . . Used . | . . . Hacking Detections 3 | . 3 . Full Trace Events . | . . . Feedback Events . | . . . Feedback Blocked . | . . . Robot Schematics Acquired . | . . . Robots Built . | . . . Authchips . | . . . Time . | . . . Total Robot Build Rating . | . . . Part Schematics Acquired . | . . . Parts Built . | . . . Authchips . | . . . Time . | . . . Total Part Build Rating . | . . . Parts Repaired . | . . . Time . | . . . Parts Recycled . | . . . Recycled Matter . | . . . Retrieved Matter . | . . . Retrieved Components . | . . . Parts Scanalyzed . | . . . Part Schematics Acquired . | . . . Parts Damaged . | . . . Bothacking | -11 -10 -10 ------------ Run | Yrd Mat Sub Used RIF Installer . | . . . Robots Hacked . | . . . Non-combat . | . . . Combat . | . . . Robot Hacks Applied . | . . . Relay Couplers Released . | . . . Fabnet Peak Effective % . | . . . Robots Rewired . | . . . Allies Hacked . | . . . Hacks Repelled . | . . . Allies | -11 -10 -10 -------- Run | Yrd Mat Sub Total Allies . | . . . Largest Group . | . . . Highest-Rated Group . | . . . Highest-Rated Ally . | . . . Total Orders . | . . . Ally Attacks . | . . . Total Damage . | . . . Kills . | . . . Allies Corrupted . | . . . Allies Melted . | . . . Intel | -11 -10 -10 ------- Run | Yrd Mat Sub Robot Analysis Total 3 | . 3 . Derelict Logs Recovered . | . . . Drone Launches . | . . . Drone Recoveries . | . . . Exploration | -11 -10 -10 ------------- Run | Yrd Mat Sub Turns Passed 2426 | 205 1205 1016 Spaces Moved 1222 | 110 601 511 Core 3 | 3 . . Treads 505 | 54 . 451 Legs 714 | 53 601 60 Wheels . | . . . Hover . | . . . Flight . | . . . Fastest Speed 50 | 50 120 160 Average Speed 159 | 137 159 163 Slowest Speed 190 | 160 190 190 Overloaded Moves . | . . . Propulsion Burnouts . | . . . Robots Hopped . | . . . Cave-ins Triggered . | . . . Exploration Rate (%) 33 | 8 62 31 Regions Visited 2 Branch Regions 1 Pre-discovered Areas . | . . . Known Exits Taken . | . . . Unknown Exits Taken 2 | 1 1 . Scrap Searched . | . . . Spaces Dug 7 | . . 7 Terrain Destroyed 7 | . . 7 Melee 7 | . . 7 Projectile . | . . . AOE . | . . . Terrain Rammed . | . . . Walls Destroyed . | . . . Machines Disabled . | . . . Actions | -11 -10 -10 --------- Run | Yrd Mat Sub Total 1534 | 141 782 611 Wait 148 | 8 101 39 Move 1220 | 109 600 511 Hop . | . . . Pick Up 26 | 4 20 2 Fast Attach 12 | 7 5 . Attach 2 | . 1 1 Detach . | . . . Swap 20 | 5 4 11 Drop 18 | . 16 2 Fire 61 | 8 34 19 Melee 27 | . 1 26 Ram . | . . . Kick . | . . . Crush . | . . . Escape Stasis . | . . . Rewire . | . . . Trap . | . . . Miscellaneous . | . . . Route ------- -11/Scrapyard -10/Materials (discovered 4 exits: [*Mat] / [*Min x2] / [*Sub]) -10/Subcaves (discovered 1 exit: [*Mat]) History --------- Turn | Location | Event 6 | -11/Scrapyard | Discovered new exit (range 15) 206 | -11/Scrapyard | Entered Materials 313 | -10/Materials | Build established: Mutant 362 | -10/Materials | Discovered new exit (range 16) 623 | -10/Materials | Discovered new exit (range 10) 632 | -10/Materials | Discovered new exit (range 16) 1390 | -10/Materials | Discovered new exit (range 12) 1411 | -10/Materials | Entered Subcaves 1772 | -10/Subcaves | Core integrity fell below 50% 1913 | -10/Subcaves | Discovered new exit (range 8) 2207 | -10/Subcaves | Shifting Twisted Machinery released Flamer 2274 | -10/Subcaves | Shifting Twisted Machinery released Sub. Monowheel 2418 | -10/Subcaves | Core integrity fell below 20% 2427 | -10/Subcaves | Destroyed by XT-OW3(R) with Subdweller Machine Gun Last Messages --------------- 01797_ Acquired 20 matter. 01873_ Subatomizers dissect the Mak. Leg. 01881_ Dropped Aluminum Leg. 01883_ Acquired Mak. Leg. 01888_ Subatomizers dissect the Lgt. Cannon. 01901_ Subatomizers dissect the Hcp. Battery. 01913_ EXIT=FOUND 02018_ Subatomizers dissect the Hcp. Battery. 02027_ Acquired 10 matter. 02031_ Subatomizers dissect the Hcp. Battery, destroying it. 02043_ Subatomizers dissect the Lgt. Cannon. 02103_ Subatomizers dissect the Aluminum Leg. Flamer falls loose from the Twisted Machinery. Sub. Monowheel falls loose from the Twisted Machinery. 02356_ CD-4OD(R) destroyed. 02361_ Subatomizers dissect the Sub. Optics. 02362_ Acquired 20 matter. 02365_ Dropped Disposable Heat Sink. 02366_ Acquired 10 matter. 02372_ Subatomizers dissect the Sub. Optics. Map ----- +----------------------------------------------------+ | ?????????????????????????????????????????????????? | | ?????????????????????????????????????????????????? | | ?????????????????????????????????????????????????? | | ?????????????????????????????????????????????????? | | ?????????????????????????????????????????????????? | | ?????????????????????????????????????????????????? | | ?????????????????????????????????????????????????? | | ?????? ??????????????????????????????????????????? | | ????? ??????????????????????????????????????? | | ????? ??????????????????????????????????????? | | ???? " ??????????????????????????????????????? | | ???? "" #?????????????????????????????????????? | | ????"" ?????????????????????????????????????? | | ???"" ?????????????????????????????????????? | | ???" #####????????????????????????????????? | | ????# ##?###???????????????????????????? | | ????# ### ###?????????????????????????? | | ??????????# #?????????????????????????? | | ?????????## #?????????????????????????? | | ?????????# ! ## ##????????????????????????? | | ??###????## !%#### """#????????????????????????? | | ??# ##????# =### #"""#????????????????????????? | | ?? ##???## ### """##???????????????????????? | | ??# ###?# ##?# ""##??????????????????????? | | ??# ""###" =#??# ### ""#??????????????????????? | | #?# " "## ""#??####?## @##?????????????????????? | | ## """#"# #????????## #?????????????????????? | | " ""## #?????????##"R"????????????????????? | | ### "##?????????#"" "??????????????????? | | ### """"## ##?????# """"""????????????????? | | ## "" #????? "" "?????????????????? | | | #???? """ "????????????????? | | """ #??? "" ""#????????????????? | | ## """"" #??? "" "?????????????????? | | ## """## ###???# "" ?????????????????? | | # "### ##?????# #????????????????? | | #?# ##?????# ##??????????????? | | ### #?? ##????## ## ######?????????? | | ######??# ##??#### #?# #???####??? | | ## ##?????###??# #??# ##### #??? | | ### #?????????? #### #??? | | ??# ##????????? ??# # #??? | | ??# ##????????? ????# ## #### | | ?## #?????#### #????## ## ## | | ?# #??#### #????# | | ?# ##??# # #?????## # | | #### ##??## ######## # ### # # | | ##?###??## # ## ## #?# ## ####### #### # | | ###???## # # # # ### ### ### ### #?### | | #??## ## #?## #??? | +----------------------------------------------------+ Best States ------------- Heat Dissipation 25 Coolant Potential 50 Energy Generation 14 Energy Capacity 265 Matter Stores 300 Matter Capacity 300 Sight Range 16 Terrain Scan Density 10 Armor Coverage 150 Evasion (%) 55 Recoil Reduction 2 Item Schematics ----------------- None Robot Schematics ------------------ None Fabricated ------------ Nothing Alien Tech Used ----------------- None Achievements -------------- None Challenges ------------ None Game ------ Seed IntegratedArmoredConstruct Manual? 0 Play Time 00:13:31 Cumulative 63.2 hours Start 2024.04.21 @ 09:15:51 End 2024.04.21 @ 09:28:32 Sessions 1 Manual Loads 0 Difficulty Rogue Special Mode None Game No. 70 Rogue 70 Adventurer 0 Explorer 0 Win Type - Total 0 Types 0/0/0/0/0/0/0/0/0 Lore% 31 Gallery% 48 Achievement% 32 Wizard Run 0 Options --------- Layout 0 ASCII 0 Keyboard 0 Movement Mouse Keybinds 0 Fullscreen 2 Font 24/Smallcaps Map View 183x50 Zoom Use 0% Tactical HUD 1 Map Filters NONE Filters NONE Steam 0 RUN: af6f8e4c-172d-483a-a3f0-e3559ef5b753